Cogmind - Beta 13 @@@ ROGUE MODE // 2024.03.06 @ 15:32:58 Player: SX_7 Result: Self-destructed Performance ------------- Evolutions (1) 500 Regions Visited (3) 600 Robots Destroyed (25) 125 Value Destroyed (391) 391 Prototype IDs (0) 0 Alien Tech Used (0) 0 Bonus (0) 0 TOTAL SCORE: 1616 Bonus ------- None Cogmind --------- Core Integrity 352/400 Matter 255/300 Energy 125/125 System Corruption 0% Temperature Cool (0) Movement Walking (120) Location -9/Materials Parts ------- > --- POWER (1) -------- Light Ion Engine > --- PROPULSION (2) --- Aluminum Leg Aluminum Leg > --- UTILITY (4) ------ Small Storage Unit Improved Terrain Scanner Seismic Detector > --- WEAPON (2) ------- Assault Rifle Heavy Assault Rifle > --- INVENTORY (8) ---- Ion Engine Aluminum Leg Aluminum Leg Small Storage Unit Medium Armor Plating Medium Armor Plating EM Pulse Gun Rocket Launcher Peak State ------------ > --- POWER ------------ Light Ion Engine > --- PROPULSION ------- Aluminum Leg Aluminum Leg > --- UTILITY ---------- Small Storage Unit Improved Terrain Scanner Seismic Detector Medium Armor Plating > --- WEAPON ----------- Assault Rifle Heavy Assault Rifle > --- INVENTORY -------- Ion Engine Aluminum Leg Aluminum Leg Small Storage Unit Medium Armor Plating Field Recycling Unit EM Pulse Gun Grenade Launcher [Rating: 14] Favorites ----------- Power Light Ion Engine Engine Light Ion Engine Propulsion Aluminum Leg Leg Aluminum Leg Utility Small Storage Unit Device Seismic Detector Storage Small Storage Unit Protection Medium Armor Plating Weapon Assault Rifle Energy Gun EM Pulse Gun Ballistic Gun Assault Rifle Build | -11 -10 -10 -9 ------- Run | Yrd Mat Min Mat Slots Evolved 2 | . . . 2 Power . | . . . . Propulsion . | . . . . Utility 2 | . . . 2 Weapon . | . . . . Parts Attached 21 | 8 3 4 6 Power 2 | 1 . 1 . Engine 2 | 1 . 1 . Core . | . . . . Reactor . | . . . . Propulsion 6 | 2 2 . 2 Treads . | . . . . Leg 6 | 2 2 . 2 Wheel . | . . . . Hover . | . . . . Flight . | . . . . Utility 6 | 3 . 1 2 Device 4 | 2 . 1 1 Storage 1 | 1 . . . Processor . | . . . . Hackware . | . . . . Protection 1 | . . . 1 Artifact . | . . . . Weapon 7 | 2 1 2 2 Energy Gun 1 | . 1 . . Energy Cannon . | . . . . Ballistic Gun 6 | 2 . 2 2 Ballistic Cannon . | . . . . Launcher . | . . . . Special Weapon . | . . . . Impact Weapon . | . . . . Slashing Weapon . | . . . . Piercing Weapon . | . . . . Special Melee Weapon . | . . . . Unidentified Prototypes . | . . . . Parts Lost 1 | . 1 . . Power . | . . . . Propulsion . | . . . . Utility . | . . . . Weapon 1 | . 1 . . Highest Loss Streak 1 | . 1 . . To Critical Strikes . | . . . . Average Slot Usage (%) 98 | . 100 100 96 Engine 13 | . 14 14 11 Leg 26 | . 28 28 22 Device 16 | . 14 14 22 Storage 13 | . 14 14 11 Protection 2 | . . . 8 Energy Gun 1 | . . 3 . Ballistic Gun 24 | . 27 24 21 Naked Turns . | . . . . Heaviest Build 22 | 15 15 15 22 Greatest Support 20 | 20 20 20 20 Greatest Overweight (x) 4 | 4 . . 1 Average Overweight (x) . | . . . . Largest Inventory Capacity 8 | 8 8 8 8 Average Capacity 7 | 7 8 8 8 Most Carried 8 | 5 8 8 8 Average Carried 7 | 3 6 7 7 Final Capacity 8 | 8 8 8 8 Final Carried 8 | 5 7 8 8 Class Distribution -------------------- 69% | Mutant 30% | Scavenger-Mutant Dominant Class ---------------- Mutant | -10/Materials Mutant | -10/Mines Scavenger-Mutant | -9/Materials Resources | -11 -10 -10 -9 ----------- Run | Yrd Mat Min Mat Matter Collected 875 | 191 387 186 111 Remotely . | . . . . Salvage Created 819 | 162 416 78 163 Parts 62 | 15 25 12 10 Haulers Intercepted 1 | . 1 . . Recyclers Shooed 4 | . 1 1 2 Parts Field Recycled . | . . . . Retrieved Matter . | . . . . Parts Self-Destructed . | . . . . Prevented . | . . . . Kills | -11 -10 -10 -9 ------- Run | Yrd Mat Min Mat Combat Hostiles Destroyed 13 | . 9 1 3 Guns 13 | . 9 1 3 Classes Destroyed 6 | 2 3 1 . Worker 1 | . . 1 . Tunneler 7 | 5 . 2 . Hauler 1 | . 1 . . Recycler 3 | 1 1 . 1 Swarmer 6 | . 5 1 . Grunt 7 | . 4 . 3 Best Kill Streak 4 | 2 4 2 4 Combat Bots Only 3 | . 3 1 3 Max Kills in Single Turn 2 | 1 1 2 1 Gunslinging . | . . . . Exploded . | . . . . Melee . | . . . . Uniques/NPCs Destroyed . | . . . . Combat | -11 -10 -10 -9 -------- Run | Yrd Mat Min Mat Hostile Shots Fired 99 | . 59 10 30 Missed 31 | . 18 . 13 Damage Taken 715 | . 432 91 192 Core 106 | . 43 15 48 Absorbed by Shields . | . . . . Regen/Repaired (Parts) 110 | . . . 110 Core Remaining (%) 88 | 100 . 76 . Volleys Fired 77 | 14 37 10 16 Largest 2 | 2 2 2 2 Hottest 60 | 40 40 60 43 Shots Fired 154 | 28 74 20 32 Gun 154 | 28 74 20 32 Cannon . | . . . . Launcher . | . . . . Special . | . . . . Kinetic 144 | 28 74 10 32 Thermal . | . . . . Explosive . | . . . . Electromagnetic 10 | . . 10 . Robot Hit Streak 11 | 4 7 6 11 Robot Miss Streak 4 | 3 4 3 2 Penetration Max . | . . . . Secondary Targets . | . . . . Shots Hit Robots 84 | 14 38 7 25 Core Hits 37 | 7 19 4 7 Critical Kills . | . . . . Critical Parts Destroyed . | . . . . Critical Strikes . | . . . . Melee Attacks . | . . . . Impact . | . . . . Slashing . | . . . . Piercing . | . . . . Sneak Attacks . | . . . . Combat Hostiles . | . . . . Follow-up Attacks . | . . . . Damage Inflicted 1216 | 171 569 118 358 Guns 1191 | 171 544 118 358 Cannons . | . . . . Explosions . | . . . . Melee . | . . . . Ramming 25 | . 25 . . Kinetic 1137 | 171 544 64 358 Thermal . | . . . . Explosive . | . . . . Electromagnetic 54 | . . 54 . Impact . | . . . . Slashing . | . . . . Piercing . | . . . . Highest Corruption . | . . . . Average Corruption . | . . . . Corruption Purged . | . . . . Corruption Blocked . | . . . . Overload Shots . | . . . . Overflow Damage . | . . . . Projectiles . | . . . . Explosions . | . . . . Melee . | . . . . Knockbacks . | . . . . Impact . | . . . . Kinetic . | . . . . Secondary . | . . . . Self-Inflicted Damage . | . . . . Shots . | . . . . Rammed . | . . . . Targets Rammed 4 | . 4 . . Kicked 4 | . 4 . . Crushed . | . . . . Highest Temperature 20 | . 20 . . Average Temperature 8 | . 8 . . Received Heat Transfer 258 | . 156 9 93 Siege Activations . | . . . . Robots Corrupted . | . . . . Combat Hostiles . | . . . . Parts Fried . | . . . . Impact Corruptions . | . . . . Robots Melted . | . . . . Combat Hostiles . | . . . . Parts Melted . | . . . . Heat Transferred . | . . . . Parts Sabotaged . | . . . . Parts Stolen . | . . . . Parts Stripped . | . . . . Power Chain Reactions . | . . . . Alert | -11 -10 -10 -9 ------- Run | Yrd Mat Min Mat Peak Influence 228 | 30 228 133 91 Initial 53 | . 19 53 5 Average 69 | 12 94 88 42 Maximum Alert Level 1 | . 1 . . Low Security (%) 93 | 100 83 100 100 Level 1 6 | . 16 . . Level 2 . | . . . . Level 3 . | . . . . Level 4 . | . . . . Level 5 . | . . . . High Security . | . . . . Max Security . | . . . . Squads Dispatched 7 | . 4 . 3 Investigation 4 | . 2 . 2 Extermination . | . . . . Reinforcement 3 | . 2 . 1 Assault . | . . . . Garrison . | . . . . Intercept . | . . . . Searches Triggered . | . . . . Construction Impeded . | . . . . Haulers Reinforced . | . . . . Active Scanning Responses . | . . . . Cargo Convoy Interrupts . | . . . . Stealth | -11 -10 -10 -9 --------- Run | Yrd Mat Min Mat Distress Signals 4 | . 3 . 1 Communications Jammed . | . . . . Distress Signals . | . . . . Times Spotted 37 | . 19 5 13 Peak Tracking Total 11 | . 5 3 11 Tactical Retreats 2 | . 1 1 . Traps | -11 -10 -10 -9 ------- Run | Yrd Mat Min Mat Traps Triggered 4 | . 2 . 2 Indirectly . | . . . . Trap Hack Attempts . | . . . . Triggered . | . . . . Disarmed . | . . . . Reprogrammed . | . . . . Reused . | . . . . Traps Extracted . | . . . . Installed . | . . . . Triggered . | . . . . Machines | -11 -10 -10 -9 ---------- Run | Yrd Mat Min Mat Machines Disabled 1 | . . 1 . Max in Single Turn 1 | . . 1 . Machines Repaired . | . . . . Machines Dismantled . | . . . . Machines Sabotaged . | . . . . Overloaded Fab Kills . | . . . . Hacking | -11 -10 -10 -9 --------- Run | Yrd Mat Min Mat Machines Accessed 8 | . 4 . 4 Terminals 5 | . 2 . 3 Fabricators . | . . . . Repair Stations 1 | . . . 1 Recycling Units 2 | . 2 . . Scanalyzers . | . . . . Garrison Access . | . . . . Total Hacks 27 | . 12 . 15 Successful 13 | . 4 . 9 Failed 14 | . 8 . 6 Catastrophic 4 | . 2 . 2 Database Lockouts . | . . . . Manual 18 | . 8 . 10 Terminals 15 | . 5 . 10 Fabricators . | . . . . Repair Stations 5 | . . . 5 Recycling Units 7 | . 7 . . Scanalyzers . | . . . . Garrison Access . | . . . . Terminal Hacks 1 | . 1 . . Recall Investigation 1 | . 1 . . Fabricator Hacks . | . . . . Repair Station Hacks 5 | . . . 5 Scan Component 3 | . . . 3 Repair 2 | . . . 2 Recycling Unit Hacks . | . . . . Scanalyzer . | . . . . Garrison Access Hacks . | . . . . Unauthorized Hacks 7 | . 3 . 4 Terminals 5 | . 1 . 4 Track 2 | . . . 2 Botnet 3 | . 1 . 2 Fabricators . | . . . . Repair Stations . | . . . . Recycling Units 2 | . 2 . . Reject 2 | . 2 . . Scanalyzers . | . . . . Garrison Access . | . . . . Data Cores Recovered . | . . . . Used . | . . . . Hacking Detections 7 | . 4 . 3 Full Trace Events 1 | . 1 . . Feedback Events . | . . . . Feedback Blocked . | . . . . Robot Schematics Acquired . | . . . . Robots Built . | . . . . Authchips . | . . . . Time . | . . . . Total Robot Build Rating . | . . . . Part Schematics Acquired . | . . . . Parts Built . | . . . . Authchips . | . . . . Time . | . . . . Total Part Build Rating . | . . . . Parts Repaired 2 | . . . 2 Time 58 | . . . 58 Parts Recycled . | . . . . Recycled Matter . | . . . . Retrieved Matter . | . . . . Retrieved Components . | . . . . Parts Scanalyzed . | . . . . Part Schematics Acquired . | . . . . Parts Damaged . | . . . . Bothacking | -11 -10 -10 -9 ------------ Run | Yrd Mat Min Mat Used RIF Installer . | . . . . Robots Hacked . | . . . . Non-combat . | . . . . Combat . | . . . . Robot Hacks Applied . | . . . . Relay Couplers Released . | . . . . Fabnet Peak Effective % . | . . . . Robots Rewired . | . . . . Allies Hacked . | . . . . Hacks Repelled . | . . . . Allies | -11 -10 -10 -9 -------- Run | Yrd Mat Min Mat Total Allies . | . . . . Largest Group . | . . . . Highest-Rated Group . | . . . . Highest-Rated Ally . | . . . . Total Orders . | . . . . Ally Attacks . | . . . . Total Damage . | . . . . Kills . | . . . . Allies Corrupted . | . . . . Allies Melted . | . . . . Intel | -11 -10 -10 -9 ------- Run | Yrd Mat Min Mat Robot Analysis Total . | . . . . Derelict Logs Recovered 2 | . . 2 . Drone Launches . | . . . . Drone Recoveries . | . . . . Exploration | -11 -10 -10 -9 ------------- Run | Yrd Mat Min Mat Turns Passed 2122 | 208 760 524 630 Spaces Moved 1214 | 126 395 403 290 Core 24 | 24 . . . Treads . | . . . . Legs 1190 | 102 395 403 290 Wheels . | . . . . Hover . | . . . . Flight . | . . . . Fastest Speed 50 | 50 120 120 120 Average Speed 129 | 116 120 120 159 Slowest Speed 250 | 250 120 120 190 Overloaded Moves . | . . . . Propulsion Burnouts . | . . . . Robots Hopped . | . . . . Cave-ins Triggered . | . . . . Exploration Rate (%) 41 | 8 42 86 31 Regions Visited 3 Branch Regions 1 Pre-discovered Areas . | . . . . Known Exits Taken . | . . . . Unknown Exits Taken 3 | 1 1 1 . Scrap Searched 1 | . . 1 . Spaces Dug . | . . . . Terrain Destroyed . | . . . . Melee . | . . . . Projectile . | . . . . AOE . | . . . . Terrain Rammed . | . . . . Walls Destroyed . | . . . . Machines Disabled . | . . . . Actions | -11 -10 -10 -9 --------- Run | Yrd Mat Min Mat Total 1617 | 159 608 424 426 Wait 264 | . 161 . 103 Move 1211 | 125 394 402 290 Hop . | . . . . Pick Up 24 | 12 5 3 4 Fast Attach 5 | . . 2 3 Attach 9 | 7 1 . 1 Detach 1 | . . . 1 Swap 7 | 1 2 2 2 Drop 15 | . 4 5 6 Fire 77 | 14 37 10 16 Melee . | . . . . Ram . | . . . . Kick 4 | . 4 . . Crush . | . . . . Escape Stasis . | . . . . Rewire . | . . . . Trap . | . . . . Miscellaneous . | . . . . Route ------- -11/Scrapyard -10/Materials -10/Mines (discovered 2 exits: *Mat x2) -9/Materials (discovered 1 exit: [*Min]) History --------- Turn | Location | Event 9 | -11/Scrapyard | Discovered new exit (range 15) 209 | -11/Scrapyard | Entered Materials 309 | -10/Materials | Build established: Mutant 952 | -10/Materials | Discovered new exit (range 15) 969 | -10/Materials | Entered Mines 999 | -10/Mines | Discovered new exit (range 7) 1359 | -10/Mines | Learned Materials garrison access intel 1450 | -10/Mines | Discovered new exit (range 12) 1467 | -10/Mines | Joined a pair of Derelicts in attacking an 0b10 outpost 1493 | -10/Mines | Entered Materials 1493 | -9/Materials | Evolved 2 slots: Utility x2 1549 | -9/Materials | Discovered new exit (range 10) 1766 | -9/Materials | Build established: Scavenger-Mutant 1768 | -9/Materials | Repaired Assault Rifle 1812 | -9/Materials | Repaired Hvy. Assault Rifle 2123 | -9/Materials | Self-destructed Last Messages --------------- 02033_ Dropped Field Recycling Unit. 02061_ Triggered Alarm Trap. 02061_ An alarm sounds. 02061_ ALERT: Alarm triggered, dispatching investigation squad. 02067_ ALERT: Hostiles spotted, dispatching reinforcements to Terminal M011. 02069_ U-05 Engineer lays Concrete. 02081_ T-07 Excavator is excavating. 02087_ K-01 Serf collects debris. 02088_ T-07 Excavator is excavating. 02094_ U-05 Engineer lays Concrete. 02096_ T-07 Excavator is excavating. 02099_ K-01 Serf destroyed. 02100_ U-05 Engineer lays Concrete. 02103_ T-07 Excavator is excavating. 02106_ R-06 Scavenger destroyed. 02109_ K-01 Serf collects debris. 02113_ U-05 Engineer lays Concrete. 02116_ K-01 Serf collects debris. 02120_ W-16 Scout sends out distress signal. Map ----- +----------------------------------------------------+ | ?????????????????????????????????????????????????? | | ?????????????????????????????????????????????????? | | ?????????????????????????????????????????????????? | | ?????????????????????????????????????????????????? | | ?????????????????????????????????????????????????? | | ?????????????????????????????????????????????????? | | ?????????????????????????????????????????????????? | | ??????????????????????????????????#??????????????? | | ????????????????????? ?????????????????#?????????? | | ????????????????????????#####????????????????????? | | ????????????????????????# #??????????????????? | | ????????????????????????# """#???????????????#??? | | ????????????????????????# """#??????????????????? | | ????????????????????????? """???????????????????? | | ????????????? ??????????? ??####????#??###???? | | ?????????????????????????? ???# ##????### ####? | | ????????????????#????????? ???# #????#T" #? | | ???????????????????????####+###### ####### "## ### | | ???????????????????????# =% | | ????????????????????#### ! | | ????????????????????# %= | | ????????????????????# l ############ ######### | | ????????????????????# #???#?#????# #???????# | | ??????????????"?????# #??????????# #?#?????# | | ????????????????????# w ##??#??????# #???????# | | ????????????????????#k a @ #?????????## ####?? ?# | | ????????????????????# #?????????+ +????# | | ??????????????????#?#s #??????????# #????# | | ???????????????? ??ss #????? ???## ###### | | ??????????????????##### #???? ???# / | | ??????????????????????# +?????? ???# ######### | | ??????????????????????# #???? ????# #?????#?# | | ??????????????? ??????# #???????? ?# ######### | | ??????????????????????# ####?? ?????# ## = # | | ??????????????????????# ??????######+## ## # | | ????????????????????? + ??? ??# + + """ # | | ??????????????????????###??? ??# # ## """ # | | ?????????????????????????? ???# # ## """ # | | ???????????????????????#????"??# ?# ## # | | ??????????????????????#????????# # #####+### | | ???????????????????????????"???# ??# | | ??????????????????#######??? ??# # ! | | ??????????????????# #? ??? ##???# ##### | | ?????????????????## #????? ######+####### #### | | ????????????????? < #????" # #??# #??# | | ????????????????#?# ??? ? ?# ""#??# #??# | | ??????????????????# ??##+### """ ""####+#### | | ???????????????????# #??# ## """"" T"## # | | ??????????? ??? ??## #### + """"" ""## """" # | | ???????????????????# [ r ## """"" ""## """" # | +----------------------------------------------------+ Best States ------------- Heat Dissipation 28 Energy Generation 10 Energy Capacity 250 Matter Stores 300 Matter Capacity 300 Sight Range 16 Terrain Scan Range 16 Terrain Scan Density 10 Armor Coverage 225 Evasion (%) 55 Item Schematics ----------------- None Robot Schematics ------------------ None Fabricated ------------ Nothing Alien Tech Used ----------------- None Achievements -------------- None Challenges ------------ None Game ------ Seed FusionTerrainProjector Manual? 0 Play Time 00:16:29 Cumulative 16.9 hours Start 2024.03.06 @ 15:17:36 End 2024.03.06 @ 15:32:58 Sessions 1 Manual Loads 0 Difficulty Rogue Special Mode None Game No. 22 Rogue 21 Adventurer 1 Explorer 0 Win Type - Total 0 Types 0/0/0/0/0/0/0/0/0 Lore% 20 Gallery% 18 Achievement% 20 Wizard Run 0 Options --------- Layout 0 ASCII 0 Keyboard 0 Movement Mouse Keybinds 0 Fullscreen 1 Font 20/X11 Map View 66x50 Zoom Use 0% Tactical HUD 1 Map Filters NONE Filters NONE Steam 1 RUN: 57d57fdf-5a0a-49a2-9eb1-61b1dd8fdbee